[Event "Austrian Championship 2022"]
[Site "Vienna"]
[Date "2022.08.18"]
[Round "8.10"]
[White "Froewis, Annika"]
[Black "Schernthaner, David"]
[Result "0-1"]
[ECO "B92"]
[WhiteElo "2044"]
[BlackElo "2319"]
[Annotator "TA"]
[PlyCount "110"]
[EventDate "2022.08.12"]
[EventType "swiss"]
[EventCountry "AUT"]
[SourceTitle "playchess.com"]
[Source "ChessBase"]
[SourceQuality "1"]
[TimeControl "40/5400+30:1800+30"]

{[%evp 16,110,15,0,2,12,18,21,16,14,29,22,34,15,18,18,18,-16,-13,-25,-7,-35,45,-44,-20,-31,52,29,35,29,12,0,59,0,0,0,26,0,15,0,22,19,25,-62,-55,-58,-68,-132,-121,-129,-89,-80,-80,-82,-63,-67,-61,-66,-60,-290,-299,-416,-416,-768,-770,-914,-468,-468,-468,-468,-447,-796,-796,-785,-766,-926,-885,-863,-685,-686,-681,-1796,-2817,-2290,-1652,-3933,-1107,-29970,-29971,-5206,-4831,-29974,-29975,-29993,-29994,-29994,-29991]} 1. e4 {[%emt 0:00:03]} c5 {[%emt 0:00:05]} 2. Nf3 {[%emt 0:00:05]} d6 {[%emt 0:00:04]} 3. d4 {[%emt 0:00:05]} cxd4 {[%emt 0:00:04]} 4. Nxd4 {[%emt 0:00:05]} Nf6 {[%emt 0:00:05]} 5. Nc3 {[%emt 0:00:07]} a6 {[%emt 0:00:04]} 6. Be2 {[%emt 0:01:02]} e5 {[%emt 0:00:42]} 7. Nb3 {[%emt 0:00:15]} Be7 {[%emt 0:00:05]} 8. O-O {[%emt 0:00:31]} O-O {[%emt 0:00:05]} 9. Kh1 {[%emt 0:00:22]} Nc6 {[%emt 0:02:12] B92: Sicilian Najdorf: 6 Be2.} 10. f3 {[%emt 0:05:39]} Be6 {[%emt 0:04:38]} 11. Nd5 {[%emt 0:07:12]} Bxd5 {[%emt 0:13:28] The position is equal. was the old line (11...a5).} 12. exd5 {[%emt 0:00:05]} Nb4 {[%emt 0:00:08]} 13. c4 {[%emt 0:01:36] Threatens to win with a3.} a5 {[%emt 0:00:11][%cal Ba6a5,Ba5a4][%mdl 32] [#]} 14. a3 $146 {[%emt 0:07:55]} ({Predecessor:} 14. Bd2 b6 15. Bxb4 axb4 16. Qd2 Nd7 17. Qxb4 f5 18. Bd3 Nc5 19. Nxc5 bxc5 20. Qd2 {0-1 (37) Solozhenkin,E (2489)-Kulaots,K (2592) Finland 2012}) 14... Na6 {[%emt 0:00:49]} 15. Be3 {[%emt 0:09:43]} Nd7 {[%emt 0:09:50]} 16. f4 {[%emt 0:17:32]} a4 {[%emt 0:03:21]} 17. Nd2 {[%emt 0:05:51]} Nac5 {[%emt 0:01:35]} 18. Qc2 {[%emt 0:06:12]} Re8 {[%emt 0:17:59]} (18... Bf6 $15) 19. Rf3 {[%emt 0:09:48]} ({White should try} 19. fxe5 $14 Nxe5 20. Bxc5 dxc5 21. Ne4) 19... Bf6 {[%emt 0:01:42] Hoping for ...exf4.} 20. Rh3 {[%emt 0:07:15]} e4 {[%emt 0:03:14]} (20... h6 $1 $15 21. Bg4 exf4 22. Bxf4 Ra6) 21. Rb1 {[%emt 0:02:08]} (21. Rf1 $5 {[%cal Re2g4]}) 21... g6 {[%emt 0:05:27]} 22. g4 {[%emt 0:01:19]} Bg7 {[%emt 0:01:34]} 23. g5 {[%emt 0:03:14]} Qe7 {[%emt 0:08:16]} (23... f5 $11) 24. Bf1 {[%emt 0:01:04]} (24. Rf1 $14) 24... f6 {[%emt 0:02:37]} 25. gxf6 {[%emt 0:00:57]} Qxf6 {[%emt 0:00:35]} (25... Nxf6 $5 {[%cal Rf6g4]} 26. Be2 Qd7 $11) 26. Bg2 {[%emt 0:01:55]} Re7 {[%emt 0:05:42]} 27. Rg3 {[%emt 0:00:52]} ({Avoid the trap} 27. Bxe4 $2 Nxe4 28. Nxe4 Qf5 $19) 27... Rae8 {[%emt 0:01:14]} 28. Bh3 {[%emt 0:01:59]} Kh8 {[%emt 0:00:39]} 29. Bxd7 {[%emt 0:01:58]} (29. b3 $11) 29... Rxd7 $15 {[%emt 0:01:09]} 30. Bxc5 {[%emt 0:00:36]} dxc5 {[%emt 0:00:04]} 31. Nxe4 {[%emt 0:01:53]} ({Better is} 31. Re1 $15) 31... Qf5 $17 {[%emt 0:01:21]} 32. Re3 {[%emt 0:01:34]} Bd4 {[%emt 0:01:52]} 33. Re2 {[%emt 0:00:47] [#]} Rde7 $1 {[%emt 0:02:25]} ({Of course not} 33... Qxf4 $6 {[#]} 34. Ng5 $1 (34. Qd3 Rde7 $15) 34... Rb8 35. Qc1 Qxc1+ 36. Rxc1 $15) 34. Rbe1 {[%emt 0:00:06]} Qxf4 {[%emt 0:00:40]} 35. Qd3 {[%emt 0:00:39] Against Qf3+} Qf5 $36 {[%emt 0:03:36][%cal Ob7b5][%mdl 2048] Black is pushing. Black is more active.} 36. Kg2 {[%emt 0:01:40]} b5 {[%emt 0:02:02] Strongly threatening ...bxc4.} 37. cxb5 {[%emt 0:02:45] Now White is beyond hope.} ({White should play} 37. Qf3 $15) 37... Qxd5 $19 {[%emt 0:00:08]} 38. Qf3 {[%emt 0:00:29]} Rf7 {[%emt 0:00:25]} 39. Qd3 {[%emt 0:01:43]} (39. Qg3 $142 Ref8 40. h3) 39... Rf4 {[%emt 0:02:49]} 40. h3 {[%emt 0:00:51]} Ref8 {[%emt 0:02:12]} 41. Qg3 {[%emt 0:13:26]} Bf2 {[%emt 0:14:45]} 42. Rxf2 {[%emt 0:11:35]} Rxf2+ {[%emt 0:00:05]} 43. Kg1 {[%emt 0:01:04]} (43. Qxf2 $142 Rxf2+ 44. Kxf2 Qd4+ 45. Re3 Qxb2+ 46. Ke1) 43... Rxb2 {[%emt 0:02:49]} 44. Qc3+ {[%emt 0:04:37]} Qd4+ {[%emt 0:00:07]} 45. Qxd4+ {[%emt 0:00:09]} cxd4 {[%emt 0:00:03][%mdl 4096] Endgame KRR-KRN} 46. Rd1 {[%emt 0:00:46]} Rd8 {[%emt 0:00:12]} 47. Nc5 {[%emt 0:00:29]} Rxb5 {[%emt 0:00:25]} 48. Ne6 {[%emt 0:00:36]} Rd6 {[%emt 0:00:11]} 49. Nf4 {[%emt 0:00:44]} d3 {[%emt 0:00:38][%cal Bd4d3,Bd3d2][%mdl 32]} 50. Kf2 {[%emt 0:00:12]} d2 {[%emt 0:00:19]} 51. Ke3 {[%emt 0:00:37]} Rb3+ {[%emt 0:00:18]} 52. Ke4 {[%emt 0:00:06]} Rxa3 {[%emt 0:00:33] ( -> ...Rc3)} 53. Ke5 {[%emt 0:00:06]} Rd8 {[%emt 0:00:17] Black mates.} 54. h4 {[%emt 0:01:33]} Re3+ {[%emt 0:00:06]} 55. Kf6 {[%emt 0:00:03]} Re1 {[%emt 0:00:17] Weighted Error Value: White=0.83/Black=0.24 (precise)} 0-1

[Event "Austrian Championship 2022"]
[Site "Vienna"]
[Date "2022.08.18"]
[Round "8.11"]
[White "Bauer, Thomas"]
[Black "Schroll, Gerhard"]
[Result "0-1"]
[ECO "B01"]
[WhiteElo "2228"]
[BlackElo "2281"]
[Annotator "TA"]
[PlyCount "34"]
[EventDate "2022.08.12"]
[EventType "swiss"]
[EventCountry "AUT"]
[SourceTitle "playchess.com"]
[Source "ChessBase"]
[SourceQuality "1"]
[TimeControl "40/5400+30:1800+30"]

{[%evp 10,34,16,0,0,0,58,62,57,54,54,50,54,-57,-41,-56,-30,-173,-177,-156,-125,-174,-163,-2719,-1416,-29997,-29998]} 1. e4 {[%emt 0:00:02]} d5 {[%emt 0:00:08]} 2. exd5 {[%emt 0:00:15]} Qxd5 {[%emt 0:00:01]} 3. Nf3 {[%emt 1:31:43]} Bg4 {[%emt 0:00:32]} 4. Be2 {[%emt 0:00:00]} Nc6 {[%emt 0:00:49]} 5. d4 {[%emt 0:00:00][%cal Bd2d4,Bd4d5][%mdl 32]} O-O-O {[%emt 0:06:50]} 6. c4 {[%emt 0:00:00]} Qf5 {[%emt 0:04:06]} 7. Be3 {[%emt 0:00:00]} e5 {[%emt 0:01:00]} ({Better is} 7... Bxf3 $11 8. Bxf3 Nxd4 $1) 8. d5 $14 {[%emt 0:00:00]} Nf6 {[%emt 0:04:41] White is slightly better.} 9. O-O {[%emt 0:00:00] And now Qa4 would win.} e4 {[%emt 0:01:41]} 10. Nd4 {[%emt 0:00:00]} Nxd4 {[%emt 0:03:18]} 11. Bxg4 {[%emt 0:00:00]} ({White should try} 11. Bxd4 $14 Bd6 12. Re1) 11... Nxg4 $15 {[%emt 0:02:35]} 12. Qxd4 {[%emt 0:00:00]} c5 {[%emt 0:10:00]} 13. Qd1 {[%emt 0:00:00]} (13. Qc3 $1 $11) 13... Bd6 $40 {[%emt 0:02:34][%mdl 128] Black wants a kill.} 14. h3 {[%emt 0:00:00]} Nh2 {[%emt 0:08:15] Black is much more active.} 15. Re1 {[%emt 0:00:00] [#]} (15. Nd2 $17 {is a better defense.}) 15... Nf3+ $1 {[%emt 0:00:53]} 16. gxf3 $2 {[%emt 0:00:00]} (16. Kf1) 16... exf3 {[%emt 0:00:35]} 17. Nd2 {[%emt 0:00:00]} Qg6+ {[%emt 0:00:19] Weighted Error Value: White=1.04/Black=0.59} 0-1

[Event "Austrian Championship 2022"]
[Site "Vienna"]
[Date "2022.08.18"]
[Round "8.12"]
[White "Neumeier, Klaus"]
[Black "Kienboeck, Benjamin"]
[Result "1-0"]
[ECO "A13"]
[WhiteElo "2257"]
[BlackElo "2151"]
[Annotator "NA RC"]
[PlyCount "109"]
[EventDate "2022.08.12"]
[EventType "swiss"]
[EventCountry "AUT"]
[SourceTitle "playchess.com"]
[Source "ChessBase"]
[SourceQuality "1"]
[TimeControl "40/5400+30:1800+30"]

1. c4 {[%emt 0:00:06]} Nf6 {[%emt 0:00:54]} 2. Nf3 {[%emt 0:00:24]} e6 {[%emt 0:00:13]} 3. g3 {[%emt 0:00:22]} d5 {[%emt 0:00:07]} 4. Bg2 {[%emt 0:00:11]} dxc4 {[%emt 0:00:11]} 5. Qa4+ {[%emt 0:01:29]} Nbd7 {[%emt 0:00:12]} 6. Qxc4 {[%emt 0:00:14]} a6 {[%emt 0:00:08]} 7. Qb3 {[%emt 0:04:46]} c5 {[%emt 0:01:35]} 8. a4 {[%emt 0:01:02]} Qc7 {[%emt 0:02:58]} 9. d3 {[%emt 0:00:28]} b6 {[%emt 0:11:57]} 10. Na3 {[%emt 0:08:37]} Bb7 {[%emt 0:02:00]} 11. Nc4 {[%emt 0:02:14]} Nd5 {[%emt 0:17:54]} 12. O-O {[%emt 0:04:53]} Be7 {[%emt 0:02:05]} 13. e4 {[%emt 0:09:37]} Nb4 {[%emt 0:00:25]} 14. Bf4 {[%emt 0:00:35]} Qd8 {[%emt 0:01:24]} 15. Nd6+ {[%emt 0:06:50]} Bxd6 {[%emt 0:00:49]} 16. Bxd6 {[%emt 0:00:05]} Nc6 {[%emt 0:15:09]} 17. e5 {[%emt 0:08:28]} Na5 {[%emt 0:01:17]} 18. Qc3 {[%emt 0:05:15]} Bd5 {[%emt 0:01:03]} 19. b4 {[%emt 0:00:32]} Nb7 {[%emt 0:00:43]} 20. d4 {[%emt 0:12:36]} Nxd6 {[%emt 0:05:21]} 21. exd6 {[%emt 0:00:07]} O-O {[%emt 0:03:23]} 22. dxc5 {[%emt 0:09:41]} bxc5 {[%emt 0:00:32]} 23. bxc5 {[%emt 0:05:52]} Rc8 {[%emt 0:00:14]} 24. Rfc1 {[%emt 0:04:19]} Nxc5 {[%emt 0:01:15]} 25. Qe5 {[%emt 0:00:41]} Qd7 {[%emt 0:11:04]} 26. Ne1 {[%emt 0:02:25]} Bxg2 {[%emt 0:07:16]} 27. Kxg2 {[%emt 0:00:23]} Nb3 {[%emt 0:00:24]} 28. Rxc8 {[%emt 0:00:10]} Rxc8 {[%emt 0:00:01]} 29. Rd1 {[%emt 0:00:16]} Nc5 {[%emt 0:03:37]} 30. a5 {[%emt 0:00:50]} Qc6+ {[%emt 0:00:44]} 31. Kg1 {[%emt 0:00:16]} Nd7 {[%emt 0:00:06]} 32. Qe3 {[%emt 0:01:49]} Qa4 {[%emt 0:00:59]} 33. Rc1 {[%emt 0:00:16]} Rc6 {[%emt 0:03:27]} 34. Rxc6 {[%emt 0:01:37]} Qxc6 {[%emt 0:00:01]} 35. Qd4 {[%emt 0:02:53]} Qc5 {[%emt 0:03:29]} 36. Qxc5 {[%emt 0:00:17]} Nxc5 {[%emt 0:05:33]} 37. Nd3 {[%emt 0:00:16]} Nb7 {[%emt 0:00:00]} 38. d7 {[%emt 0:00:06]} Kf8 {[%emt 0:00:15]} 39. Nc5 {[%emt 0:00:07]} Nd8 {[%emt 0:00:14]} 40. Nxa6 {[%emt 0:00:17]} Ke7 {[%emt 0:00:22]} 41. Nc5 {[%emt 0:32:24]} Nc6 {[%emt 0:03:20]} 42. a6 {[%emt 0:00:00]} e5 {[%emt 0:11:47]} 43. Kf1 {[%emt 0:00:00]} g6 {[%emt 0:01:20]} 44. Ke2 {[%emt 0:00:00]} f5 {[%emt 0:03:46]} 45. Kd2 {[%emt 0:00:00]} g5 {[%emt 0:01:10]} 46. Kc3 {[%emt 0:00:00]} e4 {[%emt 0:00:34]} 47. Kc4 {[%emt 0:00:00]} f4 {[%emt 0:00:48]} 48. gxf4 {[%emt 0:00:00]} gxf4 {[%emt 0:00:01]} 49. Kb5 {[%emt 0:00:00]} e3 {[%emt 0:09:09]} 50. fxe3 {[%emt 0:00:00]} f3 {[%emt 0:00:07]} 51. Kxc6 {[%emt 0:00:00]} f2 {[%emt 0:00:17]} 52. Kc7 {[%emt 0:00:00]} f1=Q {[%emt 0:00:09]} 53. d8=Q+ {[%emt 0:00:00]} Kf7 {[%emt 0:00:06]} 54. Qd5+ {[%emt 0:00:00]} Kf8 {[%emt 0:00:52]} 55. a7 {[%emt 0:00:00]} 1-0

[Event "Austrian Championship 2022"]
[Site "Vienna"]
[Date "2022.08.18"]
[Round "8.13"]
[White "Leitner, Gerald"]
[Black "Belke, Frank"]
[Result "1/2-1/2"]
[ECO "A89"]
[WhiteElo "2145"]
[BlackElo "2226"]
[Annotator "RC"]
[PlyCount "32"]
[EventDate "2022.08.12"]
[EventType "swiss"]
[EventCountry "AUT"]
[SourceTitle "playchess.com"]
[Source "ChessBase"]
[SourceQuality "1"]
[TimeControl "40/5400+30:1800+30"]

1. d4 {[%emt 0:00:01]} f5 {[%emt 0:00:05]} 2. Nf3 {[%emt 0:00:49]} Nf6 {[%emt 0:00:06]} 3. g3 {[%emt 0:00:01]} g6 {[%emt 0:00:06]} 4. Bg2 {[%emt 0:00:02]} Bg7 {[%emt 0:00:07]} 5. O-O {[%emt 0:00:02]} O-O {[%emt 0:00:05]} 6. c4 {[%emt 0:00:50]} d6 {[%emt 0:00:05]} 7. Nc3 {[%emt 0:00:01]} Nc6 {[%emt 0:00:06]} 8. d5 {[%emt 0:00:42]} Na5 {[%emt 0:00:04]} 9. Qd3 {[%emt 0:02:42]} e5 {[%emt 0:00:08]} 10. dxe6 {[%emt 0:01:00]} Bxe6 {[%emt 0:00:06]} 11. b3 {[%emt 0:04:42]} Nc6 {[%emt 0:01:38]} 12. Bb2 {[%emt 0:10:08]} Ne4 {[%emt 0:01:52]} 13. Rab1 {[%emt 0:13:19]} Nb4 {[%emt 0:45:48]} 14. Qe3 {[%emt 0:00:09]} Nc2 {[%emt 0:00:11]} 15. Qd3 {[%emt 0:00:01]} Nb4 {[%emt 0:00:07]} 16. Qe3 {[%emt 0:00:10]} Nc2 {[%emt 0:00:01]} 1/2-1/2

[Event "Austrian Championship 2022"]
[Site "Vienna"]
[Date "2022.08.18"]
[Round "8.14"]
[White "Teuschler, Barbara"]
[Black "Borrmann, Laurenz"]
[Result "1/2-1/2"]
[ECO "A01"]
[WhiteElo "2097"]
[BlackElo "2274"]
[Annotator "NA RC"]
[PlyCount "62"]
[EventDate "2022.08.12"]
[EventType "swiss"]
[EventCountry "AUT"]
[SourceTitle "playchess.com"]
[Source "ChessBase"]
[SourceQuality "1"]
[TimeControl "40/5400+30:1800+30"]

1. b3 {[%emt 0:00:01]} e5 {[%emt 0:00:14]} 2. Bb2 {[%emt 0:00:05]} Nc6 {[%emt 0:00:07]} 3. c4 {[%emt 0:00:03]} Nge7 {[%emt 0:00:20]} 4. e3 {[%emt 0:00:19]} d5 {[%emt 0:00:52]} 5. cxd5 {[%emt 0:00:04]} Nxd5 {[%emt 0:00:14]} 6. a3 {[%emt 0:00:12]} a6 {[%emt 0:00:54]} 7. Nf3 {[%emt 0:02:07]} Bd6 {[%emt 0:04:09]} 8. d3 {[%emt 0:01:31]} Qe7 {[%emt 0:11:57]} 9. Nbd2 {[%emt 0:01:01]} f5 {[%emt 0:06:38]} 10. g3 {[%emt 0:18:29]} g5 {[%emt 0:19:34]} 11. Nc4 {[%emt 0:20:34]} Bd7 {[%emt 0:06:20]} 12. Nfd2 {[%emt 0:17:41]} O-O-O {[%emt 0:03:54]} 13. Nxd6+ {[%emt 0:00:42]} cxd6 {[%emt 0:09:25]} 14. Bg2 {[%emt 0:00:55]} Be6 {[%emt 0:03:08]} 15. Nc4 {[%emt 0:01:41]} Kb8 {[%emt 0:00:58]} 16. Qe2 {[%emt 0:09:23]} f4 {[%emt 0:01:06]} 17. O-O-O {[%emt 0:00:51]} Rhf8 {[%emt 0:00:42]} 18. Rhe1 {[%emt 0:08:40]} Qd7 {[%emt 0:03:39]} 19. exf4 {[%emt 0:00:18]} gxf4 {[%emt 0:00:15]} 20. d4 {[%emt 0:02:04]} Qf7 {[%emt 0:05:19]} 21. Be4 {[%emt 0:03:08]} Nxd4 {[%emt 0:03:22]} 22. Bxd4 {[%emt 0:00:09]} exd4 {[%emt 0:00:04]} 23. Bg6 {[%emt 0:03:41]} Qxg6 {[%emt 0:02:11]} 24. Qxe6 {[%emt 0:00:01]} Nf6 {[%emt 0:01:19]} 25. Nxd6 {[%emt 0:03:10]} d3 {[%emt 0:10:02]} 26. Kb2 {[%emt 0:02:13]} fxg3 {[%emt 0:00:48]} 27. fxg3 {[%emt 0:01:08]} Ka8 {[%emt 0:00:45]} 28. Rd2 {[%emt 0:00:29]} Rd7 {[%emt 0:01:37]} 29. Red1 {[%emt 0:00:34]} Rfd8 {[%emt 0:00:32]} 30. Nc4 {[%emt 0:00:03]} Rd4 {[%emt 0:03:22]} 31. Ne5 {[%emt 0:01:44]} Qg7 {[%emt 0:00:57]} 1/2-1/2

[Event "Austrian Championship 2022"]
[Site "Vienna"]
[Date "2022.08.18"]
[Round "8.15"]
[White "Wagner, Leopold Franziskus"]
[Black "Ganaus, Hannes"]
[Result "0-1"]
[ECO "B13"]
[WhiteElo "2080"]
[BlackElo "2284"]
[Annotator "NA RC"]
[PlyCount "68"]
[EventDate "2022.08.12"]
[EventType "swiss"]
[EventCountry "AUT"]
[SourceTitle "playchess.com"]
[Source "ChessBase"]
[SourceQuality "1"]
[TimeControl "40/5400+30:1800+30"]

1. d4 {[%emt 0:00:02]} d5 {[%emt 0:00:14]} 2. Bf4 {[%emt 0:00:07]} c5 {[%emt 0:00:38]} 3. e3 {[%emt 0:00:05]} Nc6 {[%emt 0:00:08]} 4. Nf3 {[%emt 0:00:05]} cxd4 {[%emt 0:02:30]} 5. exd4 {[%emt 0:00:06]} Bf5 {[%emt 0:01:19]} 6. c3 {[%emt 0:01:05]} a6 {[%emt 0:08:28]} 7. Bd3 {[%emt 0:02:19]} Bxd3 {[%emt 0:00:25]} 8. Qxd3 {[%emt 0:00:02]} e6 {[%emt 0:00:13]} 9. Nbd2 {[%emt 0:00:23]} Bd6 {[%emt 0:01:14]} 10. Bg3 {[%emt 0:01:06]} Nge7 {[%emt 0:08:03]} 11. O-O {[%emt 0:00:24]} Bxg3 {[%emt 0:06:42]} 12. hxg3 {[%emt 0:05:54]} Ng6 {[%emt 0:08:19]} 13. Rfe1 {[%emt 0:04:20]} O-O {[%emt 0:00:11]} 14. Nb3 {[%emt 0:02:44]} a5 {[%emt 0:08:09]} 15. Qe2 {[%emt 0:06:22]} Re8 {[%emt 0:02:47]} 16. Nc5 {[%emt 0:02:14]} Qc7 {[%emt 0:04:56]} 17. Nd3 {[%emt 0:00:48]} f6 {[%emt 0:05:20]} 18. Rad1 {[%emt 0:04:37]} Rad8 {[%emt 0:01:31]} 19. Nh4 {[%emt 0:08:53]} Nxh4 {[%emt 0:00:47]} 20. gxh4 {[%emt 0:00:01]} e5 {[%emt 0:02:04]} 21. Qg4 {[%emt 0:05:06]} e4 {[%emt 0:03:11]} 22. Nf4 {[%emt 0:00:31]} Qf7 {[%emt 0:02:04]} 23. a3 {[%emt 0:08:03]} f5 {[%emt 0:01:54]} 24. Qg5 {[%emt 0:06:20]} a4 {[%emt 0:02:34]} 25. h5 {[%emt 0:03:29]} Rd6 {[%emt 0:01:20]} 26. Re2 {[%emt 0:09:17]} Nd8 {[%emt 0:04:36]} 27. g3 {[%emt 0:02:14]} Ne6 {[%emt 0:06:37]} 28. Nxe6 {[%emt 0:00:05]} Rdxe6 {[%emt 0:01:58]} 29. Kg2 {[%emt 0:00:38]} f4 {[%emt 0:03:52]} 30. Qxf4 {[%emt 0:03:15]} Qxh5 {[%emt 0:00:26]} 31. g4 {[%emt 0:02:46]} Rg6 {[%emt 0:00:56]} 32. f3 {[%emt 0:07:23]} exf3+ {[%emt 0:00:52]} 33. Kxf3 {[%emt 0:00:19]} Qh3+ {[%emt 0:00:09]} 34. Kf2 {[%emt 0:00:58]} Rf8 {[%emt 0:00:18]} 0-1

[Event "Austrian Championship 2022"]
[Site "Vienna"]
[Date "2022.08.18"]
[Round "8.16"]
[White "Sandhoefner, Florian"]
[Black "Miazhynski, Yuri"]
[Result "1/2-1/2"]
[ECO "B15"]
[WhiteElo "2289"]
[BlackElo "2166"]
[Annotator "NA RC"]
[PlyCount "91"]
[EventDate "2022.08.12"]
[EventType "swiss"]
[EventCountry "AUT"]
[SourceTitle "playchess.com"]
[Source "ChessBase"]
[SourceQuality "1"]
[TimeControl "40/5400+30:1800+30"]

1. e4 {[%emt 0:00:02]} c6 {[%emt 0:00:08]} 2. d4 {[%emt 0:00:05]} d5 {[%emt 0:00:05]} 3. Nc3 {[%emt 0:00:04]} dxe4 {[%emt 0:00:10]} 4. Nxe4 {[%emt 0:00:05]} Nf6 {[%emt 0:00:06]} 5. Nxf6+ {[%emt 0:00:06]} exf6 {[%emt 0:00:05]} 6. c3 {[%emt 0:00:03]} Bd6 {[%emt 0:00:08]} 7. Bd3 {[%emt 0:00:04]} Na6 {[%emt 0:00:10]} 8. Qc2 {[%emt 0:00:07]} h5 {[%emt 0:01:15]} 9. Ne2 {[%emt 0:01:03]} Nc7 {[%emt 0:00:16]} 10. Bf4 {[%emt 0:01:33]} Nd5 {[%emt 0:02:16]} 11. Bxd6 {[%emt 0:01:27]} Qxd6 {[%emt 0:00:02]} 12. O-O-O {[%emt 0:00:29]} b5 {[%emt 0:03:20]} 13. Kb1 {[%emt 0:03:20]} h4 {[%emt 0:05:24]} 14. Bf5 {[%emt 0:02:00]} Bxf5 {[%emt 0:01:56]} 15. Qxf5 {[%emt 0:00:41]} g6 {[%emt 0:00:08]} 16. Qf3 {[%emt 0:01:05]} Kf8 {[%emt 0:00:51]} 17. Nc1 {[%emt 0:00:29]} Kg7 {[%emt 0:01:56]} 18. Rde1 {[%emt 0:05:41]} a5 {[%emt 0:00:59]} 19. g3 {[%emt 0:03:12]} h3 {[%emt 0:01:15]} 20. Re2 {[%emt 0:03:20]} a4 {[%emt 0:03:41]} 21. a3 {[%emt 0:01:22]} Rae8 {[%emt 0:11:17]} 22. Rhe1 {[%emt 0:02:35]} Rxe2 {[%emt 0:09:02]} 23. Qxe2 {[%emt 0:01:45]} Qd7 {[%emt 0:21:08]} 24. Nd3 {[%emt 0:04:42]} Qf5 {[%emt 0:19:14]} 25. Qe4 {[%emt 0:01:49]} Qd7 {[%emt 0:00:23]} 26. Kc2 {[%emt 0:02:29]} Rd8 {[%emt 0:05:22]} 27. f4 {[%emt 0:06:42]} Rh8 {[%emt 0:04:49]} 28. Nf2 {[%emt 0:02:57]} Nc7 {[%emt 0:00:50]} 29. Qf3 {[%emt 0:03:50]} Re8 {[%emt 0:00:40]} 30. Rxe8 {[%emt 0:02:24]} Qxe8 {[%emt 0:00:41]} 31. Qe4 {[%emt 0:09:48]} Qd7 {[%emt 0:00:33]} 32. g4 {[%emt 0:03:27]} Nd5 {[%emt 0:01:10]} 33. Kd2 {[%emt 0:01:16]} Nb6 {[%emt 0:03:25]} 34. Kc1 {[%emt 0:06:18]} Nc4 {[%emt 0:00:26]} 35. Kc2 {[%emt 0:06:11]} f5 {[%emt 0:01:34]} 36. gxf5 {[%emt 0:00:21]} gxf5 {[%emt 0:00:09]} 37. Qf3 {[%emt 0:02:22]} Qe6 {[%emt 0:00:55]} 38. Nxh3 {[%emt 0:03:26]} Kf8 {[%emt 0:00:37]} 39. Nf2 {[%emt 0:04:54]} Qe1 {[%emt 0:00:52]} 40. Nd1 {[%emt 0:00:34]} Qd2+ {[%emt 0:01:37]} 41. Kb1 {[%emt 0:31:06]} Qxh2 {[%emt 0:18:28]} 42. Qxc6 {[%emt 0:00:00]} Qe2 {[%emt 0:00:42]} 43. Qh1 {[%emt 0:00:00]} Qd3+ {[%emt 0:04:48]} 44. Ka2 {[%emt 0:00:00]} Qc2 {[%emt 0:00:13]} 45. Ka1 {[%emt 0:00:00]} Nd2 {[%emt 0:05:41]} 46. Qh8+ {[%emt 0:00:00]} 1/2-1/2

[Event "Austrian Championship 2022"]
[Site "Vienna"]
[Date "2022.08.18"]
[Round "8.17"]
[White "Pilshofer, Paul"]
[Black "Exler, Veronika"]
[Result "1/2-1/2"]
[ECO "D79"]
[WhiteElo "2223"]
[BlackElo "2132"]
[Annotator "NA RC"]
[PlyCount "81"]
[EventDate "2022.08.12"]
[EventType "swiss"]
[EventCountry "AUT"]
[SourceTitle "playchess.com"]
[Source "ChessBase"]
[SourceQuality "1"]
[TimeControl "40/5400+30:1800+30"]

1. d4 {[%emt 0:17:39]} Nf6 {[%emt 0:00:05]} 2. Nf3 {[%emt 0:00:04]} g6 {[%emt 0:00:05]} 3. g3 {[%emt 0:00:17]} Bg7 {[%emt 0:00:07]} 4. Bg2 {[%emt 0:00:19]} d5 {[%emt 0:00:18]} 5. O-O {[%emt 0:00:32]} O-O {[%emt 0:00:11]} 6. c4 {[%emt 0:01:56]} c6 {[%emt 0:00:06]} 7. cxd5 {[%emt 0:04:16]} cxd5 {[%emt 0:00:07]} 8. Nc3 {[%emt 0:00:15]} Ne4 {[%emt 0:01:58]} 9. Nxe4 {[%emt 0:11:29]} dxe4 {[%emt 0:00:08]} 10. Ne5 {[%emt 0:00:01]} Bf5 {[%emt 0:04:19]} 11. Qb3 {[%emt 0:12:11]} Nc6 {[%emt 0:15:25]} 12. Nxc6 {[%emt 0:05:26]} bxc6 {[%emt 0:00:05]} 13. Be3 {[%emt 0:07:09]} e5 {[%emt 0:18:19]} 14. dxe5 {[%emt 0:01:35]} Bxe5 {[%emt 0:00:06]} 15. Qc2 {[%emt 0:02:58]} Qf6 {[%emt 0:25:08]} 16. Rab1 {[%emt 0:02:23]} Bd4 {[%emt 0:07:46]} 17. Bxd4 {[%emt 0:04:04]} Qxd4 {[%emt 0:00:02]} 18. Rfd1 {[%emt 0:05:26]} Qe5 {[%emt 0:00:21]} 19. e3 {[%emt 0:01:19]} Rad8 {[%emt 0:18:02]} 20. b3 {[%emt 0:06:00]} Qa5 {[%emt 0:00:41]} 21. h3 {[%emt 0:02:31]} h5 {[%emt 0:00:25]} 22. Qe2 {[%emt 0:01:20]} Qe5 {[%emt 0:01:53]} 23. Rbc1 {[%emt 0:01:53]} Qb5 {[%emt 0:01:06]} 24. Qc2 {[%emt 0:01:15]} Qa5 {[%emt 0:00:47]} 25. Kh2 {[%emt 0:03:20]} Rd5 {[%emt 0:00:13]} 26. Bf1 {[%emt 0:05:04]} Rfd8 {[%emt 0:00:16]} 27. Rxd5 {[%emt 0:03:18]} cxd5 {[%emt 0:02:02]} 28. Qc7 {[%emt 0:00:00]} Qxc7 {[%emt 0:00:12]} 29. Rxc7 {[%emt 0:00:00]} Rd7 {[%emt 0:01:04]} 30. Rc5 {[%emt 0:00:00]} d4 {[%emt 0:02:52]} 31. exd4 {[%emt 0:00:26]} Rxd4 {[%emt 0:00:01]} 32. Rc2 {[%emt 0:00:01]} Rd1 {[%emt 0:01:43]} 33. Be2 {[%emt 0:00:12]} Ra1 {[%emt 0:00:26]} 34. g4 {[%emt 0:00:24]} hxg4 {[%emt 0:00:11]} 35. hxg4 {[%emt 0:00:01]} Be6 {[%emt 0:00:17]} 36. g5 {[%emt 0:01:30]} Bf5 {[%emt 0:00:22]} 37. Rd2 {[%emt 0:00:20]} Kg7 {[%emt 0:00:40]} 38. Bc4 {[%emt 0:01:39]} f6 {[%emt 0:00:27]} 39. gxf6+ {[%emt 0:00:13]} Kxf6 {[%emt 0:00:02]} 40. Rd6+ {[%emt 0:00:46]} Ke5 {[%emt 0:00:45]} 41. Rd2 {[%emt 0:12:48]} 1/2-1/2